{"text_format":"3","workbook":"xlsx","n_sheets":3,"sheets":["График","Въвеждане на данни","Търсене на име"],"not_rendered":{"defined_names":5},"read":"whole","date_system":"1900"}

{"sheet":"График","index":0,"n_rows":23,"n_cols":9,"rows_kept":23,"merged":[[1,1,2,3]]}
[]
[null,"ГРАФИК ЗА ДЕНЯ",{"$nulls":4},"За седмицата, започваща на","Покажи графика за: "]
[{"$nulls":5},{"$f":"WEEKDAY(Седмица,1)","v":3},"2012-07-03","Станимир"]
[null,null,{"$f":"$F$3=COLUMN(A$1)","v":false},{"$f":"$F$3=COLUMN(B$1)","v":false},true,false,false,false,false]
[null,null,{"$f":"COLUMN(A$1)-MATCH(TRUE,$C$4:$I$4,0)+Седмица+1","v":"2012-07-02"},"2012-07-03","2012-07-04","2012-07-05","2012-07-06","2012-07-07","2012-07-08"]
[null,"ЧАС","ПОНЕДЕЛНИК","ВТОРНИК","СРЯДА","ЧЕТВЪРТЪК","ПЕТЪК","СЪБОТА","НЕДЕЛЯ"]
[null,"06:00:00",{"$f":"IFERROR(INDEX(таблДанни[],MATCH(C$5+$B7&Показване_на_име,таблДанни[ДАТА И ЧАС]&таблДанни[КОЙ],0),3),\"\")","v":""},{"$f":"IFERROR(INDEX(таблДанни[],MATCH(D$5+$B7&Показване_на_име,таблДанни[ДАТА И ЧАС]&таблДанни[КОЙ],0),3),\"\")","v":""},{"$f":"IFERROR(INDEX(таблДанни[],MATCH(E$5+$B7&Показване_на_име,таблДанни[ДАТА И ЧАС]&таблДанни[КОЙ],0),3),\"\")","v":""},{"$f":"IFERROR(INDEX(таблДанни[],MATCH(F$5+$B7&Показване_на_име,таблДанни[ДАТА И ЧАС]&таблДанни[КОЙ],0),3),\"\")","v":""},{"$f":"IFERROR(INDEX(таблДанни[],MATCH(G$5+$B7&Показване_на_име,таблДанни[ДАТА И ЧАС]&таблДанни[КОЙ],0),3),\"\")","v":""},{"$f":"IFERROR(INDEX(таблДанни[],MATCH(H$5+$B7&Показване_на_име,таблДанни[ДАТА И ЧАС]&таблДанни[КОЙ],0),3),\"\")","v":""},{"$f":"IFERROR(INDEX(таблДанни[],MATCH(I$5+$B7&Показване_на_име,таблДанни[ДАТА И ЧАС]&таблДанни[КОЙ],0),3),\"\")","v":""}]
[null,"07:00:00",{"$f":"IFERROR(INDEX(таблДанни[],MATCH(C$5+$B8&Показване_на_име,таблДанни[ДАТА И ЧАС]&таблДанни[КОЙ],0),3),\"\")","v":""},{"$f":"IFERROR(INDEX(таблДанни[],MATCH(D$5+$B8&Показване_на_име,таблДанни[ДАТА И ЧАС]&таблДанни[КОЙ],0),3),\"\")","v":""},{"$f":"IFERROR(INDEX(таблДанни[],MATCH(E$5+$B8&Показване_на_име,таблДанни[ДАТА И ЧАС]&таблДанни[КОЙ],0),3),\"\")","v":""},{"$f":"IFERROR(INDEX(таблДанни[],MATCH(F$5+$B8&Показване_на_име,таблДанни[ДАТА И ЧАС]&таблДанни[КОЙ],0),3),\"\")","v":""},{"$f":"IFERROR(INDEX(таблДанни[],MATCH(G$5+$B8&Показване_на_име,таблДанни[ДАТА И ЧАС]&таблДанни[КОЙ],0),3),\"\")","v":""},{"$f":"IFERROR(INDEX(таблДанни[],MATCH(H$5+$B8&Показване_на_име,таблДанни[ДАТА И ЧАС]&таблДанни[КОЙ],0),3),\"\")","v":""},{"$f":"IFERROR(INDEX(таблДанни[],MATCH(I$5+$B8&Показване_на_име,таблДанни[ДАТА И ЧАС]&таблДанни[КОЙ],0),3),\"\")","v":""}]
[null,"08:00:00",{"$f":"IFERROR(INDEX(таблДанни[],MATCH(C$5+$B9&Показване_на_име,таблДанни[ДАТА И ЧАС]&таблДанни[КОЙ],0),3),\"\")","v":""},{"$f":"IFERROR(INDEX(таблДанни[],MATCH(D$5+$B9&Показване_на_име,таблДанни[ДАТА И ЧАС]&таблДанни[КОЙ],0),3),\"\")","v":""},{"$f":"IFERROR(INDEX(таблДанни[],MATCH(E$5+$B9&Показване_на_име,таблДанни[ДАТА И ЧАС]&таблДанни[КОЙ],0),3),\"\")","v":""},{"$f":"IFERROR(INDEX(таблДанни[],MATCH(F$5+$B9&Показване_на_име,таблДанни[ДАТА И ЧАС]&таблДанни[КОЙ],0),3),\"\")","v":""},{"$f":"IFERROR(INDEX(таблДанни[],MATCH(G$5+$B9&Показване_на_име,таблДанни[ДАТА И ЧАС]&таблДанни[КОЙ],0),3),\"\")","v":""},{"$f":"IFERROR(INDEX(таблДанни[],MATCH(H$5+$B9&Показване_на_име,таблДанни[ДАТА И ЧАС]&таблДанни[КОЙ],0),3),\"\")","v":""},{"$f":"IFERROR(INDEX(таблДанни[],MATCH(I$5+$B9&Показване_на_име,таблДанни[ДАТА И ЧАС]&таблДанни[КОЙ],0),3),\"\")","v":""}]
[null,"09:00:00",{"$f":"IFERROR(INDEX(таблДанни[],MATCH(C$5+$B10&Показване_на_име,таблДанни[ДАТА И ЧАС]&таблДанни[КОЙ],0),3),\"\")","v":""},{"$f":"IFERROR(INDEX(таблДанни[],MATCH(D$5+$B10&Показване_на_име,таблДанни[ДАТА И ЧАС]&таблДанни[КОЙ],0),3),\"\")","v":""},{"$f":"IFERROR(INDEX(таблДанни[],MATCH(E$5+$B10&Показване_на_име,таблДанни[ДАТА И ЧАС]&таблДанни[КОЙ],0),3),\"\")","v":""},{"$f":"IFERROR(INDEX(таблДанни[],MATCH(F$5+$B10&Показване_на_име,таблДанни[ДАТА И ЧАС]&таблДанни[КОЙ],0),3),\"\")","v":""},{"$f":"IFERROR(INDEX(таблДанни[],MATCH(G$5+$B10&Показване_на_име,таблДанни[ДАТА И ЧАС]&таблДанни[КОЙ],0),3),\"\")","v":""},{"$f":"IFERROR(INDEX(таблДанни[],MATCH(H$5+$B10&Показване_на_име,таблДанни[ДАТА И ЧАС]&таблДанни[КОЙ],0),3),\"\")","v":""},{"$f":"IFERROR(INDEX(таблДанни[],MATCH(I$5+$B10&Показване_на_име,таблДанни[ДАТА И ЧАС]&таблДанни[КОЙ],0),3),\"\")","v":""}]
[null,"10:00:00",{"$f":"IFERROR(INDEX(таблДанни[],MATCH(C$5+$B11&Показване_на_име,таблДанни[ДАТА И ЧАС]&таблДанни[КОЙ],0),3),\"\")","v":""},{"$f":"IFERROR(INDEX(таблДанни[],MATCH(D$5+$B11&Показване_на_име,таблДанни[ДАТА И ЧАС]&таблДанни[КОЙ],0),3),\"\")","v":""},{"$f":"IFERROR(INDEX(таблДанни[],MATCH(E$5+$B11&Показване_на_име,таблДанни[ДАТА И ЧАС]&таблДанни[КОЙ],0),3),\"\")","v":"Парад в центъра"},{"$f":"IFERROR(INDEX(таблДанни[],MATCH(F$5+$B11&Показване_на_име,таблДанни[ДАТА И ЧАС]&таблДанни[КОЙ],0),3),\"\")","v":""},{"$f":"IFERROR(INDEX(таблДанни[],MATCH(G$5+$B11&Показване_на_име,таблДанни[ДАТА И ЧАС]&таблДанни[КОЙ],0),3),\"\")","v":""},{"$f":"IFERROR(INDEX(таблДанни[],MATCH(H$5+$B11&Показване_на_име,таблДанни[ДАТА И ЧАС]&таблДанни[КОЙ],0),3),\"\")","v":""},{"$f":"IFERROR(INDEX(таблДанни[],MATCH(I$5+$B11&Показване_на_име,таблДанни[ДАТА И ЧАС]&таблДанни[КОЙ],0),3),\"\")","v":""}]
[null,"11:00:00",{"$f":"IFERROR(INDEX(таблДанни[],MATCH(C$5+$B12&Показване_на_име,таблДанни[ДАТА И ЧАС]&таблДанни[КОЙ],0),3),\"\")","v":""},{"$f":"IFERROR(INDEX(таблДанни[],MATCH(D$5+$B12&Показване_на_име,таблДанни[ДАТА И ЧАС]&таблДанни[КОЙ],0),3),\"\")","v":""},{"$f":"IFERROR(INDEX(таблДанни[],MATCH(E$5+$B12&Показване_на_име,таблДанни[ДАТА И ЧАС]&таблДанни[КОЙ],0),3),\"\")","v":""},{"$f":"IFERROR(INDEX(таблДанни[],MATCH(F$5+$B12&Показване_на_име,таблДанни[ДАТА И ЧАС]&таблДанни[КОЙ],0),3),\"\")","v":""},{"$f":"IFERROR(INDEX(таблДанни[],MATCH(G$5+$B12&Показване_на_име,таблДанни[ДАТА И ЧАС]&таблДанни[КОЙ],0),3),\"\")","v":"Семейно барбекю"},{"$f":"IFERROR(INDEX(таблДанни[],MATCH(H$5+$B12&Показване_на_име,таблДанни[ДАТА И ЧАС]&таблДанни[КОЙ],0),3),\"\")","v":""},{"$f":"IFERROR(INDEX(таблДанни[],MATCH(I$5+$B12&Показване_на_име,таблДанни[ДАТА И ЧАС]&таблДанни[КОЙ],0),3),\"\")","v":""}]
[null,"12:00:00",{"$f":"IFERROR(INDEX(таблДанни[],MATCH(C$5+$B13&Показване_на_име,таблДанни[ДАТА И ЧАС]&таблДанни[КОЙ],0),3),\"\")","v":""},{"$f":"IFERROR(INDEX(таблДанни[],MATCH(D$5+$B13&Показване_на_име,таблДанни[ДАТА И ЧАС]&таблДанни[КОЙ],0),3),\"\")","v":""},{"$f":"IFERROR(INDEX(таблДанни[],MATCH(E$5+$B13&Показване_на_име,таблДанни[ДАТА И ЧАС]&таблДанни[КОЙ],0),3),\"\")","v":""},{"$f":"IFERROR(INDEX(таблДанни[],MATCH(F$5+$B13&Показване_на_име,таблДанни[ДАТА И ЧАС]&таблДанни[КОЙ],0),3),\"\")","v":""},{"$f":"IFERROR(INDEX(таблДанни[],MATCH(G$5+$B13&Показване_на_име,таблДанни[ДАТА И ЧАС]&таблДанни[КОЙ],0),3),\"\")","v":""},{"$f":"IFERROR(INDEX(таблДанни[],MATCH(H$5+$B13&Показване_на_име,таблДанни[ДАТА И ЧАС]&таблДанни[КОЙ],0),3),\"\")","v":""},{"$f":"IFERROR(INDEX(таблДанни[],MATCH(I$5+$B13&Показване_на_име,таблДанни[ДАТА И ЧАС]&таблДанни[КОЙ],0),3),\"\")","v":""}]
[null,"13:00:00",{"$f":"IFERROR(INDEX(таблДанни[],MATCH(C$5+$B14&Показване_на_име,таблДанни[ДАТА И ЧАС]&таблДанни[КОЙ],0),3),\"\")","v":""},{"$f":"IFERROR(INDEX(таблДанни[],MATCH(D$5+$B14&Показване_на_име,таблДанни[ДАТА И ЧАС]&таблДанни[КОЙ],0),3),\"\")","v":""},{"$f":"IFERROR(INDEX(таблДанни[],MATCH(E$5+$B14&Показване_на_име,таблДанни[ДАТА И ЧАС]&таблДанни[КОЙ],0),3),\"\")","v":""},{"$f":"IFERROR(INDEX(таблДанни[],MATCH(F$5+$B14&Показване_на_име,таблДанни[ДАТА И ЧАС]&таблДанни[КОЙ],0),3),\"\")","v":""},{"$f":"IFERROR(INDEX(таблДанни[],MATCH(G$5+$B14&Показване_на_име,таблДанни[ДАТА И ЧАС]&таблДанни[КОЙ],0),3),\"\")","v":""},{"$f":"IFERROR(INDEX(таблДанни[],MATCH(H$5+$B14&Показване_на_име,таблДанни[ДАТА И ЧАС]&таблДанни[КОЙ],0),3),\"\")","v":""},{"$f":"IFERROR(INDEX(таблДанни[],MATCH(I$5+$B14&Показване_на_име,таблДанни[ДАТА И ЧАС]&таблДанни[КОЙ],0),3),\"\")","v":""}]
[null,"14:00:00",{"$f":"IFERROR(INDEX(таблДанни[],MATCH(C$5+$B15&Показване_на_име,таблДанни[ДАТА И ЧАС]&таблДанни[КОЙ],0),3),\"\")","v":""},{"$f":"IFERROR(INDEX(таблДанни[],MATCH(D$5+$B15&Показване_на_име,таблДанни[ДАТА И ЧАС]&таблДанни[КОЙ],0),3),\"\")","v":""},{"$f":"IFERROR(INDEX(таблДанни[],MATCH(E$5+$B15&Показване_на_име,таблДанни[ДАТА И ЧАС]&таблДанни[КОЙ],0),3),\"\")","v":""},{"$f":"IFERROR(INDEX(таблДанни[],MATCH(F$5+$B15&Показване_на_име,таблДанни[ДАТА И ЧАС]&таблДанни[КОЙ],0),3),\"\")","v":""},{"$f":"IFERROR(INDEX(таблДанни[],MATCH(G$5+$B15&Показване_на_име,таблДанни[ДАТА И ЧАС]&таблДанни[КОЙ],0),3),\"\")","v":""},{"$f":"IFERROR(INDEX(таблДанни[],MATCH(H$5+$B15&Показване_на_име,таблДанни[ДАТА И ЧАС]&таблДанни[КОЙ],0),3),\"\")","v":""},{"$f":"IFERROR(INDEX(таблДанни[],MATCH(I$5+$B15&Показване_на_име,таблДанни[ДАТА И ЧАС]&таблДанни[КОЙ],0),3),\"\")","v":""}]
[null,"15:00:00",{"$f":"IFERROR(INDEX(таблДанни[],MATCH(C$5+$B16&Показване_на_име,таблДанни[ДАТА И ЧАС]&таблДанни[КОЙ],0),3),\"\")","v":""},{"$f":"IFERROR(INDEX(таблДанни[],MATCH(D$5+$B16&Показване_на_име,таблДанни[ДАТА И ЧАС]&таблДанни[КОЙ],0),3),\"\")","v":""},{"$f":"IFERROR(INDEX(таблДанни[],MATCH(E$5+$B16&Показване_на_име,таблДанни[ДАТА И ЧАС]&таблДанни[КОЙ],0),3),\"\")","v":""},{"$f":"IFERROR(INDEX(таблДанни[],MATCH(F$5+$B16&Показване_на_име,таблДанни[ДАТА И ЧАС]&таблДанни[КОЙ],0),3),\"\")","v":""},{"$f":"IFERROR(INDEX(таблДанни[],MATCH(G$5+$B16&Показване_на_име,таблДанни[ДАТА И ЧАС]&таблДанни[КОЙ],0),3),\"\")","v":""},{"$f":"IFERROR(INDEX(таблДанни[],MATCH(H$5+$B16&Показване_на_име,таблДанни[ДАТА И ЧАС]&таблДанни[КОЙ],0),3),\"\")","v":""},{"$f":"IFERROR(INDEX(таблДанни[],MATCH(I$5+$B16&Показване_на_име,таблДанни[ДАТА И ЧАС]&таблДанни[КОЙ],0),3),\"\")","v":""}]
[null,"16:00:00",{"$f":"IFERROR(INDEX(таблДанни[],MATCH(C$5+$B17&Показване_на_име,таблДанни[ДАТА И ЧАС]&таблДанни[КОЙ],0),3),\"\")","v":""},{"$f":"IFERROR(INDEX(таблДанни[],MATCH(D$5+$B17&Показване_на_име,таблДанни[ДАТА И ЧАС]&таблДанни[КОЙ],0),3),\"\")","v":"Тръгване за хижата"},{"$f":"IFERROR(INDEX(таблДанни[],MATCH(E$5+$B17&Показване_на_име,таблДанни[ДАТА И ЧАС]&таблДанни[КОЙ],0),3),\"\")","v":""},{"$f":"IFERROR(INDEX(таблДанни[],MATCH(F$5+$B17&Показване_на_име,таблДанни[ДАТА И ЧАС]&таблДанни[КОЙ],0),3),\"\")","v":""},{"$f":"IFERROR(INDEX(таблДанни[],MATCH(G$5+$B17&Показване_на_име,таблДанни[ДАТА И ЧАС]&таблДанни[КОЙ],0),3),\"\")","v":""},{"$f":"IFERROR(INDEX(таблДанни[],MATCH(H$5+$B17&Показване_на_име,таблДанни[ДАТА И ЧАС]&таблДанни[КОЙ],0),3),\"\")","v":""},{"$f":"IFERROR(INDEX(таблДанни[],MATCH(I$5+$B17&Показване_на_име,таблДанни[ДАТА И ЧАС]&таблДанни[КОЙ],0),3),\"\")","v":""}]
[null,"17:00:00",{"$f":"IFERROR(INDEX(таблДанни[],MATCH(C$5+$B18&Показване_на_име,таблДанни[ДАТА И ЧАС]&таблДанни[КОЙ],0),3),\"\")","v":""},{"$f":"IFERROR(INDEX(таблДанни[],MATCH(D$5+$B18&Показване_на_име,таблДанни[ДАТА И ЧАС]&таблДанни[КОЙ],0),3),\"\")","v":""},{"$f":"IFERROR(INDEX(таблДанни[],MATCH(E$5+$B18&Показване_на_име,таблДанни[ДАТА И ЧАС]&таблДанни[КОЙ],0),3),\"\")","v":""},{"$f":"IFERROR(INDEX(таблДанни[],MATCH(F$5+$B18&Показване_на_име,таблДанни[ДАТА И ЧАС]&таблДанни[КОЙ],0),3),\"\")","v":""},{"$f":"IFERROR(INDEX(таблДанни[],MATCH(G$5+$B18&Показване_на_име,таблДанни[ДАТА И ЧАС]&таблДанни[КОЙ],0),3),\"\")","v":""},{"$f":"IFERROR(INDEX(таблДанни[],MATCH(H$5+$B18&Показване_на_име,таблДанни[ДАТА И ЧАС]&таблДанни[КОЙ],0),3),\"\")","v":""},{"$f":"IFERROR(INDEX(таблДанни[],MATCH(I$5+$B18&Показване_на_име,таблДанни[ДАТА И ЧАС]&таблДанни[КОЙ],0),3),\"\")","v":"Връщане вкъщи"}]
[null,"18:00:00",{"$f":"IFERROR(INDEX(таблДанни[],MATCH(C$5+$B19&Показване_на_име,таблДанни[ДАТА И ЧАС]&таблДанни[КОЙ],0),3),\"\")","v":"Вземане на лекарство"},{"$f":"IFERROR(INDEX(таблДанни[],MATCH(D$5+$B19&Показване_на_име,таблДанни[ДАТА И ЧАС]&таблДанни[КОЙ],0),3),\"\")","v":""},{"$f":"IFERROR(INDEX(таблДанни[],MATCH(E$5+$B19&Показване_на_име,таблДанни[ДАТА И ЧАС]&таблДанни[КОЙ],0),3),\"\")","v":""},{"$f":"IFERROR(INDEX(таблДанни[],MATCH(F$5+$B19&Показване_на_име,таблДанни[ДАТА И ЧАС]&таблДанни[КОЙ],0),3),\"\")","v":""},{"$f":"IFERROR(INDEX(таблДанни[],MATCH(G$5+$B19&Показване_на_име,таблДанни[ДАТА И ЧАС]&таблДанни[КОЙ],0),3),\"\")","v":""},{"$f":"IFERROR(INDEX(таблДанни[],MATCH(H$5+$B19&Показване_на_име,таблДанни[ДАТА И ЧАС]&таблДанни[КОЙ],0),3),\"\")","v":""},{"$f":"IFERROR(INDEX(таблДанни[],MATCH(I$5+$B19&Показване_на_име,таблДанни[ДАТА И ЧАС]&таблДанни[КОЙ],0),3),\"\")","v":""}]
[null,"19:00:00",{"$f":"IFERROR(INDEX(таблДанни[],MATCH(C$5+$B20&Показване_на_име,таблДанни[ДАТА И ЧАС]&таблДанни[КОЙ],0),3),\"\")","v":""},{"$f":"IFERROR(INDEX(таблДанни[],MATCH(D$5+$B20&Показване_на_име,таблДанни[ДАТА И ЧАС]&таблДанни[КОЙ],0),3),\"\")","v":""},{"$f":"IFERROR(INDEX(таблДанни[],MATCH(E$5+$B20&Показване_на_име,таблДанни[ДАТА И ЧАС]&таблДанни[КОЙ],0),3),\"\")","v":""},{"$f":"IFERROR(INDEX(таблДанни[],MATCH(F$5+$B20&Показване_на_име,таблДанни[ДАТА И ЧАС]&таблДанни[КОЙ],0),3),\"\")","v":""},{"$f":"IFERROR(INDEX(таблДанни[],MATCH(G$5+$B20&Показване_на_име,таблДанни[ДАТА И ЧАС]&таблДанни[КОЙ],0),3),\"\")","v":""},{"$f":"IFERROR(INDEX(таблДанни[],MATCH(H$5+$B20&Показване_на_име,таблДанни[ДАТА И ЧАС]&таблДанни[КОЙ],0),3),\"\")","v":""},{"$f":"IFERROR(INDEX(таблДанни[],MATCH(I$5+$B20&Показване_на_име,таблДанни[ДАТА И ЧАС]&таблДанни[КОЙ],0),3),\"\")","v":""}]
[null,"20:00:00",{"$f":"IFERROR(INDEX(таблДанни[],MATCH(C$5+$B21&Показване_на_име,таблДанни[ДАТА И ЧАС]&таблДанни[КОЙ],0),3),\"\")","v":"Филм със семейството"},{"$f":"IFERROR(INDEX(таблДанни[],MATCH(D$5+$B21&Показване_на_име,таблДанни[ДАТА И ЧАС]&таблДанни[КОЙ],0),3),\"\")","v":""},{"$f":"IFERROR(INDEX(таблДанни[],MATCH(E$5+$B21&Показване_на_име,таблДанни[ДАТА И ЧАС]&таблДанни[КОЙ],0),3),\"\")","v":""},{"$f":"IFERROR(INDEX(таблДанни[],MATCH(F$5+$B21&Показване_на_име,таблДанни[ДАТА И ЧАС]&таблДанни[КОЙ],0),3),\"\")","v":"Заря"},{"$f":"IFERROR(INDEX(таблДанни[],MATCH(G$5+$B21&Показване_на_име,таблДанни[ДАТА И ЧАС]&таблДанни[КОЙ],0),3),\"\")","v":""},{"$f":"IFERROR(INDEX(таблДанни[],MATCH(H$5+$B21&Показване_на_име,таблДанни[ДАТА И ЧАС]&таблДанни[КОЙ],0),3),\"\")","v":""},{"$f":"IFERROR(INDEX(таблДанни[],MATCH(I$5+$B21&Показване_на_име,таблДанни[ДАТА И ЧАС]&таблДанни[КОЙ],0),3),\"\")","v":""}]
[null,"21:00:00",{"$f":"IFERROR(INDEX(таблДанни[],MATCH(C$5+$B22&Показване_на_име,таблДанни[ДАТА И ЧАС]&таблДанни[КОЙ],0),3),\"\")","v":""},{"$f":"IFERROR(INDEX(таблДанни[],MATCH(D$5+$B22&Показване_на_име,таблДанни[ДАТА И ЧАС]&таблДанни[КОЙ],0),3),\"\")","v":""},{"$f":"IFERROR(INDEX(таблДанни[],MATCH(E$5+$B22&Показване_на_име,таблДанни[ДАТА И ЧАС]&таблДанни[КОЙ],0),3),\"\")","v":""},{"$f":"IFERROR(INDEX(таблДанни[],MATCH(F$5+$B22&Показване_на_име,таблДанни[ДАТА И ЧАС]&таблДанни[КОЙ],0),3),\"\")","v":""},{"$f":"IFERROR(INDEX(таблДанни[],MATCH(G$5+$B22&Показване_на_име,таблДанни[ДАТА И ЧАС]&таблДанни[КОЙ],0),3),\"\")","v":""},{"$f":"IFERROR(INDEX(таблДанни[],MATCH(H$5+$B22&Показване_на_име,таблДанни[ДАТА И ЧАС]&таблДанни[КОЙ],0),3),\"\")","v":""},{"$f":"IFERROR(INDEX(таблДанни[],MATCH(I$5+$B22&Показване_на_име,таблДанни[ДАТА И ЧАС]&таблДанни[КОЙ],0),3),\"\")","v":""}]
[null,"22:00:00",{"$f":"IFERROR(INDEX(таблДанни[],MATCH(C$5+$B23&Показване_на_име,таблДанни[ДАТА И ЧАС]&таблДанни[КОЙ],0),3),\"\")","v":""},{"$f":"IFERROR(INDEX(таблДанни[],MATCH(D$5+$B23&Показване_на_име,таблДанни[ДАТА И ЧАС]&таблДанни[КОЙ],0),3),\"\")","v":""},{"$f":"IFERROR(INDEX(таблДанни[],MATCH(E$5+$B23&Показване_на_име,таблДанни[ДАТА И ЧАС]&таблДанни[КОЙ],0),3),\"\")","v":""},{"$f":"IFERROR(INDEX(таблДанни[],MATCH(F$5+$B23&Показване_на_име,таблДанни[ДАТА И ЧАС]&таблДанни[КОЙ],0),3),\"\")","v":""},{"$f":"IFERROR(INDEX(таблДанни[],MATCH(G$5+$B23&Показване_на_име,таблДанни[ДАТА И ЧАС]&таблДанни[КОЙ],0),3),\"\")","v":""},{"$f":"IFERROR(INDEX(таблДанни[],MATCH(H$5+$B23&Показване_на_име,таблДанни[ДАТА И ЧАС]&таблДанни[КОЙ],0),3),\"\")","v":""},{"$f":"IFERROR(INDEX(таблДанни[],MATCH(I$5+$B23&Показване_на_име,таблДанни[ДАТА И ЧАС]&таблДанни[КОЙ],0),3),\"\")","v":""}]

{"sheet":"Въвеждане на данни","index":1,"n_rows":14,"n_cols":4,"rows_kept":14}
[null,"ВЪВЕЖДАНЕ НА ДАННИ"]
[]
[null,"ДАТА И ЧАС","КОЙ","ЗАДАЧА"]
[null,"2012-07-02T08:00:00","Вяра","Час за лекар"]
[null,"2012-07-02T18:00:00","Станимир","Вземане на лекарство"]
[null,"2012-07-02T18:30:00","Станимир","Вечеря с Илияна"]
[null,"2012-07-02T20:00:00","Станимир","Филм със семейството"]
[null,"2012-07-03T16:00:00","Станимир","Тръгване за хижата"]
[null,"2012-07-04T10:00:00","Станимир","Парад в центъра"]
[null,"2012-07-05T20:00:00","Станимир","Заря"]
[null,"2012-07-06T11:00:00","Станимир","Семейно барбекю"]
[null,"2012-07-07","Станимир","Пикник в квартала"]
[null,"2012-07-08T17:00:00","Станимир","Връщане вкъщи"]
[null,"2012-07-02T10:00:00","Вяра","Уроци по пиано"]

{"sheet":"Търсене на име","index":2,"n_rows":132,"n_cols":2,"rows_kept":132,"hidden":true,"merged":[[0,0,0,1]]}
["Този списък попълва падащия списък с имена на листа \"График\" в клетка H3. Всякакви промени, нанесени в този списък, могат до доведат до грешка."]
["УНИКАЛНО ИМЕ","НОМЕР НА РЕД"]
[{"$f":"IFERROR(INDEX(Кой,MATCH(0,COUNTIF($A$2:A2,Кой),0)),\"\")","v":"Вяра"},{"$f":"IF(A3=\"\",\"\",ROW())","v":3}]
[{"$f":"IFERROR(INDEX(Кой,MATCH(0,COUNTIF($A$2:A3,Кой),0)),\"\")","v":"Станимир"},{"$f":"IF(A4=\"\",\"\",ROW())","v":4}]
[{"$f":"IFERROR(INDEX(Кой,MATCH(0,COUNTIF($A$2:A4,Кой),0)),\"\")","v":""},""]
[{"$f":"IFERROR(INDEX(Кой,MATCH(0,COUNTIF($A$2:A5,Кой),0)),\"\")","v":""},""]
[{"$f":"IFERROR(INDEX(Кой,MATCH(0,COUNTIF($A$2:A6,Кой),0)),\"\")","v":""},""]
[{"$f":"IFERROR(INDEX(Кой,MATCH(0,COUNTIF($A$2:A7,Кой),0)),\"\")","v":""},""]
[{"$f":"IFERROR(INDEX(Кой,MATCH(0,COUNTIF($A$2:A8,Кой),0)),\"\")","v":""},""]
[{"$f":"IFERROR(INDEX(Кой,MATCH(0,COUNTIF($A$2:A9,Кой),0)),\"\")","v":""},""]
[{"$f":"IFERROR(INDEX(Кой,MATCH(0,COUNTIF($A$2:A10,Кой),0)),\"\")","v":""},""]
[{"$f":"IFERROR(INDEX(Кой,MATCH(0,COUNTIF($A$2:A11,Кой),0)),\"\")","v":""},""]
[{"$f":"IFERROR(INDEX(Кой,MATCH(0,COUNTIF($A$2:A12,Кой),0)),\"\")","v":""},""]
[{"$f":"IFERROR(INDEX(Кой,MATCH(0,COUNTIF($A$2:A13,Кой),0)),\"\")","v":""},""]
[{"$f":"IFERROR(INDEX(Кой,MATCH(0,COUNTIF($A$2:A14,Кой),0)),\"\")","v":""},""]
[{"$f":"IFERROR(INDEX(Кой,MATCH(0,COUNTIF($A$2:A15,Кой),0)),\"\")","v":""},""]
[{"$f":"IFERROR(INDEX(Кой,MATCH(0,COUNTIF($A$2:A16,Кой),0)),\"\")","v":""},""]
[{"$f":"IFERROR(INDEX(Кой,MATCH(0,COUNTIF($A$2:A17,Кой),0)),\"\")","v":""},""]
[{"$f":"IFERROR(INDEX(Кой,MATCH(0,COUNTIF($A$2:A18,Кой),0)),\"\")","v":""},""]
[{"$f":"IFERROR(INDEX(Кой,MATCH(0,COUNTIF($A$2:A19,Кой),0)),\"\")","v":""},""]
[{"$f":"IFERROR(INDEX(Кой,MATCH(0,COUNTIF($A$2:A20,Кой),0)),\"\")","v":""},""]
[{"$f":"IFERROR(INDEX(Кой,MATCH(0,COUNTIF($A$2:A21,Кой),0)),\"\")","v":""},""]
[{"$f":"IFERROR(INDEX(Кой,MATCH(0,COUNTIF($A$2:A22,Кой),0)),\"\")","v":""},""]
[{"$f":"IFERROR(INDEX(Кой,MATCH(0,COUNTIF($A$2:A23,Кой),0)),\"\")","v":""},""]
[{"$f":"IFERROR(INDEX(Кой,MATCH(0,COUNTIF($A$2:A24,Кой),0)),\"\")","v":""},""]
[{"$f":"IFERROR(INDEX(Кой,MATCH(0,COUNTIF($A$2:A25,Кой),0)),\"\")","v":""},""]
[{"$f":"IFERROR(INDEX(Кой,MATCH(0,COUNTIF($A$2:A26,Кой),0)),\"\")","v":""},""]
[{"$f":"IFERROR(INDEX(Кой,MATCH(0,COUNTIF($A$2:A27,Кой),0)),\"\")","v":""},""]
[{"$f":"IFERROR(INDEX(Кой,MATCH(0,COUNTIF($A$2:A28,Кой),0)),\"\")","v":""},""]
[{"$f":"IFERROR(INDEX(Кой,MATCH(0,COUNTIF($A$2:A29,Кой),0)),\"\")","v":""},""]
[{"$f":"IFERROR(INDEX(Кой,MATCH(0,COUNTIF($A$2:A30,Кой),0)),\"\")","v":""},""]
[{"$f":"IFERROR(INDEX(Кой,MATCH(0,COUNTIF($A$2:A31,Кой),0)),\"\")","v":""},""]
[{"$f":"IFERROR(INDEX(Кой,MATCH(0,COUNTIF($A$2:A32,Кой),0)),\"\")","v":""},""]
[{"$f":"IFERROR(INDEX(Кой,MATCH(0,COUNTIF($A$2:A33,Кой),0)),\"\")","v":""},""]
[{"$f":"IFERROR(INDEX(Кой,MATCH(0,COUNTIF($A$2:A34,Кой),0)),\"\")","v":""},""]
[{"$f":"IFERROR(INDEX(Кой,MATCH(0,COUNTIF($A$2:A35,Кой),0)),\"\")","v":""},""]
[{"$f":"IFERROR(INDEX(Кой,MATCH(0,COUNTIF($A$2:A36,Кой),0)),\"\")","v":""},""]
[{"$f":"IFERROR(INDEX(Кой,MATCH(0,COUNTIF($A$2:A37,Кой),0)),\"\")","v":""},""]
[{"$f":"IFERROR(INDEX(Кой,MATCH(0,COUNTIF($A$2:A38,Кой),0)),\"\")","v":""},""]
[{"$f":"IFERROR(INDEX(Кой,MATCH(0,COUNTIF($A$2:A39,Кой),0)),\"\")","v":""},""]
[{"$f":"IFERROR(INDEX(Кой,MATCH(0,COUNTIF($A$2:A40,Кой),0)),\"\")","v":""},""]
[{"$f":"IFERROR(INDEX(Кой,MATCH(0,COUNTIF($A$2:A41,Кой),0)),\"\")","v":""},""]
[{"$f":"IFERROR(INDEX(Кой,MATCH(0,COUNTIF($A$2:A42,Кой),0)),\"\")","v":""},""]
[{"$f":"IFERROR(INDEX(Кой,MATCH(0,COUNTIF($A$2:A43,Кой),0)),\"\")","v":""},""]
[{"$f":"IFERROR(INDEX(Кой,MATCH(0,COUNTIF($A$2:A44,Кой),0)),\"\")","v":""},""]
[{"$f":"IFERROR(INDEX(Кой,MATCH(0,COUNTIF($A$2:A45,Кой),0)),\"\")","v":""},""]
[{"$f":"IFERROR(INDEX(Кой,MATCH(0,COUNTIF($A$2:A46,Кой),0)),\"\")","v":""},""]
[{"$f":"IFERROR(INDEX(Кой,MATCH(0,COUNTIF($A$2:A47,Кой),0)),\"\")","v":""},""]
[{"$f":"IFERROR(INDEX(Кой,MATCH(0,COUNTIF($A$2:A48,Кой),0)),\"\")","v":""},""]
[{"$f":"IFERROR(INDEX(Кой,MATCH(0,COUNTIF($A$2:A49,Кой),0)),\"\")","v":""},""]
[{"$f":"IFERROR(INDEX(Кой,MATCH(0,COUNTIF($A$2:A50,Кой),0)),\"\")","v":""},""]
[{"$f":"IFERROR(INDEX(Кой,MATCH(0,COUNTIF($A$2:A51,Кой),0)),\"\")","v":""},""]
[{"$f":"IFERROR(INDEX(Кой,MATCH(0,COUNTIF($A$2:A52,Кой),0)),\"\")","v":""},""]
[{"$f":"IFERROR(INDEX(Кой,MATCH(0,COUNTIF($A$2:A53,Кой),0)),\"\")","v":""},""]
[{"$f":"IFERROR(INDEX(Кой,MATCH(0,COUNTIF($A$2:A54,Кой),0)),\"\")","v":""},""]
[{"$f":"IFERROR(INDEX(Кой,MATCH(0,COUNTIF($A$2:A55,Кой),0)),\"\")","v":""},""]
[{"$f":"IFERROR(INDEX(Кой,MATCH(0,COUNTIF($A$2:A56,Кой),0)),\"\")","v":""},""]
[{"$f":"IFERROR(INDEX(Кой,MATCH(0,COUNTIF($A$2:A57,Кой),0)),\"\")","v":""},""]
[{"$f":"IFERROR(INDEX(Кой,MATCH(0,COUNTIF($A$2:A58,Кой),0)),\"\")","v":""},""]
[{"$f":"IFERROR(INDEX(Кой,MATCH(0,COUNTIF($A$2:A59,Кой),0)),\"\")","v":""},""]
[{"$f":"IFERROR(INDEX(Кой,MATCH(0,COUNTIF($A$2:A60,Кой),0)),\"\")","v":""},""]
[{"$f":"IFERROR(INDEX(Кой,MATCH(0,COUNTIF($A$2:A61,Кой),0)),\"\")","v":""},""]
[{"$f":"IFERROR(INDEX(Кой,MATCH(0,COUNTIF($A$2:A62,Кой),0)),\"\")","v":""},""]
[{"$f":"IFERROR(INDEX(Кой,MATCH(0,COUNTIF($A$2:A63,Кой),0)),\"\")","v":""},""]
[{"$f":"IFERROR(INDEX(Кой,MATCH(0,COUNTIF($A$2:A64,Кой),0)),\"\")","v":""},""]
[{"$f":"IFERROR(INDEX(Кой,MATCH(0,COUNTIF($A$2:A65,Кой),0)),\"\")","v":""},""]
[{"$f":"IFERROR(INDEX(Кой,MATCH(0,COUNTIF($A$2:A66,Кой),0)),\"\")","v":""},""]
[{"$f":"IFERROR(INDEX(Кой,MATCH(0,COUNTIF($A$2:A67,Кой),0)),\"\")","v":""},{"$f":"IF(A68=\"\",\"\",ROW())","v":""}]
[{"$f":"IFERROR(INDEX(Кой,MATCH(0,COUNTIF($A$2:A68,Кой),0)),\"\")","v":""},""]
[{"$f":"IFERROR(INDEX(Кой,MATCH(0,COUNTIF($A$2:A69,Кой),0)),\"\")","v":""},""]
[{"$f":"IFERROR(INDEX(Кой,MATCH(0,COUNTIF($A$2:A70,Кой),0)),\"\")","v":""},""]
[{"$f":"IFERROR(INDEX(Кой,MATCH(0,COUNTIF($A$2:A71,Кой),0)),\"\")","v":""},""]
[{"$f":"IFERROR(INDEX(Кой,MATCH(0,COUNTIF($A$2:A72,Кой),0)),\"\")","v":""},""]
[{"$f":"IFERROR(INDEX(Кой,MATCH(0,COUNTIF($A$2:A73,Кой),0)),\"\")","v":""},""]
[{"$f":"IFERROR(INDEX(Кой,MATCH(0,COUNTIF($A$2:A74,Кой),0)),\"\")","v":""},""]
[{"$f":"IFERROR(INDEX(Кой,MATCH(0,COUNTIF($A$2:A75,Кой),0)),\"\")","v":""},""]
[{"$f":"IFERROR(INDEX(Кой,MATCH(0,COUNTIF($A$2:A76,Кой),0)),\"\")","v":""},""]
[{"$f":"IFERROR(INDEX(Кой,MATCH(0,COUNTIF($A$2:A77,Кой),0)),\"\")","v":""},""]
[{"$f":"IFERROR(INDEX(Кой,MATCH(0,COUNTIF($A$2:A78,Кой),0)),\"\")","v":""},""]
[{"$f":"IFERROR(INDEX(Кой,MATCH(0,COUNTIF($A$2:A79,Кой),0)),\"\")","v":""},""]
[{"$f":"IFERROR(INDEX(Кой,MATCH(0,COUNTIF($A$2:A80,Кой),0)),\"\")","v":""},""]
[{"$f":"IFERROR(INDEX(Кой,MATCH(0,COUNTIF($A$2:A81,Кой),0)),\"\")","v":""},""]
[{"$f":"IFERROR(INDEX(Кой,MATCH(0,COUNTIF($A$2:A82,Кой),0)),\"\")","v":""},""]
[{"$f":"IFERROR(INDEX(Кой,MATCH(0,COUNTIF($A$2:A83,Кой),0)),\"\")","v":""},""]
[{"$f":"IFERROR(INDEX(Кой,MATCH(0,COUNTIF($A$2:A84,Кой),0)),\"\")","v":""},""]
[{"$f":"IFERROR(INDEX(Кой,MATCH(0,COUNTIF($A$2:A85,Кой),0)),\"\")","v":""},""]
[{"$f":"IFERROR(INDEX(Кой,MATCH(0,COUNTIF($A$2:A86,Кой),0)),\"\")","v":""},""]
[{"$f":"IFERROR(INDEX(Кой,MATCH(0,COUNTIF($A$2:A87,Кой),0)),\"\")","v":""},""]
[{"$f":"IFERROR(INDEX(Кой,MATCH(0,COUNTIF($A$2:A88,Кой),0)),\"\")","v":""},""]
[{"$f":"IFERROR(INDEX(Кой,MATCH(0,COUNTIF($A$2:A89,Кой),0)),\"\")","v":""},""]
[{"$f":"IFERROR(INDEX(Кой,MATCH(0,COUNTIF($A$2:A90,Кой),0)),\"\")","v":""},""]
[{"$f":"IFERROR(INDEX(Кой,MATCH(0,COUNTIF($A$2:A91,Кой),0)),\"\")","v":""},""]
[{"$f":"IFERROR(INDEX(Кой,MATCH(0,COUNTIF($A$2:A92,Кой),0)),\"\")","v":""},""]
[{"$f":"IFERROR(INDEX(Кой,MATCH(0,COUNTIF($A$2:A93,Кой),0)),\"\")","v":""},""]
[{"$f":"IFERROR(INDEX(Кой,MATCH(0,COUNTIF($A$2:A94,Кой),0)),\"\")","v":""},""]
[{"$f":"IFERROR(INDEX(Кой,MATCH(0,COUNTIF($A$2:A95,Кой),0)),\"\")","v":""},""]
[{"$f":"IFERROR(INDEX(Кой,MATCH(0,COUNTIF($A$2:A96,Кой),0)),\"\")","v":""},""]
[{"$f":"IFERROR(INDEX(Кой,MATCH(0,COUNTIF($A$2:A97,Кой),0)),\"\")","v":""},""]
[{"$f":"IFERROR(INDEX(Кой,MATCH(0,COUNTIF($A$2:A98,Кой),0)),\"\")","v":""},""]
[{"$f":"IFERROR(INDEX(Кой,MATCH(0,COUNTIF($A$2:A99,Кой),0)),\"\")","v":""},""]
[{"$f":"IFERROR(INDEX(Кой,MATCH(0,COUNTIF($A$2:A100,Кой),0)),\"\")","v":""},""]
[{"$f":"IFERROR(INDEX(Кой,MATCH(0,COUNTIF($A$2:A101,Кой),0)),\"\")","v":""},""]
[{"$f":"IFERROR(INDEX(Кой,MATCH(0,COUNTIF($A$2:A102,Кой),0)),\"\")","v":""},""]
[{"$f":"IFERROR(INDEX(Кой,MATCH(0,COUNTIF($A$2:A103,Кой),0)),\"\")","v":""},""]
[{"$f":"IFERROR(INDEX(Кой,MATCH(0,COUNTIF($A$2:A104,Кой),0)),\"\")","v":""},""]
[{"$f":"IFERROR(INDEX(Кой,MATCH(0,COUNTIF($A$2:A105,Кой),0)),\"\")","v":""},""]
[{"$f":"IFERROR(INDEX(Кой,MATCH(0,COUNTIF($A$2:A106,Кой),0)),\"\")","v":""},""]
[{"$f":"IFERROR(INDEX(Кой,MATCH(0,COUNTIF($A$2:A107,Кой),0)),\"\")","v":""},""]
[{"$f":"IFERROR(INDEX(Кой,MATCH(0,COUNTIF($A$2:A108,Кой),0)),\"\")","v":""},""]
[{"$f":"IFERROR(INDEX(Кой,MATCH(0,COUNTIF($A$2:A109,Кой),0)),\"\")","v":""},""]
[{"$f":"IFERROR(INDEX(Кой,MATCH(0,COUNTIF($A$2:A110,Кой),0)),\"\")","v":""},""]
[{"$f":"IFERROR(INDEX(Кой,MATCH(0,COUNTIF($A$2:A111,Кой),0)),\"\")","v":""},""]
[{"$f":"IFERROR(INDEX(Кой,MATCH(0,COUNTIF($A$2:A112,Кой),0)),\"\")","v":""},""]
[{"$f":"IFERROR(INDEX(Кой,MATCH(0,COUNTIF($A$2:A113,Кой),0)),\"\")","v":""},""]
[{"$f":"IFERROR(INDEX(Кой,MATCH(0,COUNTIF($A$2:A114,Кой),0)),\"\")","v":""},""]
[{"$f":"IFERROR(INDEX(Кой,MATCH(0,COUNTIF($A$2:A115,Кой),0)),\"\")","v":""},""]
[{"$f":"IFERROR(INDEX(Кой,MATCH(0,COUNTIF($A$2:A116,Кой),0)),\"\")","v":""},""]
[{"$f":"IFERROR(INDEX(Кой,MATCH(0,COUNTIF($A$2:A117,Кой),0)),\"\")","v":""},""]
[{"$f":"IFERROR(INDEX(Кой,MATCH(0,COUNTIF($A$2:A118,Кой),0)),\"\")","v":""},""]
[{"$f":"IFERROR(INDEX(Кой,MATCH(0,COUNTIF($A$2:A119,Кой),0)),\"\")","v":""},""]
[{"$f":"IFERROR(INDEX(Кой,MATCH(0,COUNTIF($A$2:A120,Кой),0)),\"\")","v":""},""]
[{"$f":"IFERROR(INDEX(Кой,MATCH(0,COUNTIF($A$2:A121,Кой),0)),\"\")","v":""},""]
[{"$f":"IFERROR(INDEX(Кой,MATCH(0,COUNTIF($A$2:A122,Кой),0)),\"\")","v":""},""]
[{"$f":"IFERROR(INDEX(Кой,MATCH(0,COUNTIF($A$2:A123,Кой),0)),\"\")","v":""},""]
[{"$f":"IFERROR(INDEX(Кой,MATCH(0,COUNTIF($A$2:A124,Кой),0)),\"\")","v":""},""]
[{"$f":"IFERROR(INDEX(Кой,MATCH(0,COUNTIF($A$2:A125,Кой),0)),\"\")","v":""},""]
[{"$f":"IFERROR(INDEX(Кой,MATCH(0,COUNTIF($A$2:A126,Кой),0)),\"\")","v":""},""]
[{"$f":"IFERROR(INDEX(Кой,MATCH(0,COUNTIF($A$2:A127,Кой),0)),\"\")","v":""},""]
[{"$f":"IFERROR(INDEX(Кой,MATCH(0,COUNTIF($A$2:A128,Кой),0)),\"\")","v":""},""]
[{"$f":"IFERROR(INDEX(Кой,MATCH(0,COUNTIF($A$2:A129,Кой),0)),\"\")","v":""},""]
[{"$f":"IFERROR(INDEX(Кой,MATCH(0,COUNTIF($A$2:A130,Кой),0)),\"\")","v":""},""]
[{"$f":"IFERROR(INDEX(Кой,MATCH(0,COUNTIF($A$2:A131,Кой),0)),\"\")","v":""},{"$f":"IF(A132=\"\",\"\",ROW())","v":""}]